bitfinex/quotes_SOLUSD_20250903
["timestamp","ask_amount","ask_price","bid_price","bid_amount"]
[1756898319508,28.82841844,211.02,211.01,0.03]
[1756898319813,29.51841844,211.02,211.01,0.03]
[1756898319990,3.51841844,211.02,211.01,0.03]
[1756898320808,28.82841844,211.02,211.01,0.03]
[1756898322813,2.82841844,211.02,211.01,0.03]
[1756898325022,3.48841844,211.02,211.01,0.03]
[1756898326205,5.3881596,211.02,211.01,0.03]
[1756898326402,4.7281596,211.02,211.01,0.03]
[1756898328027,5.3881596,211.02,211.01,0.03]
[1756898330203,2.55974116,211.02,211.01,0.03]
[1756898330410,5.3881596,211.02,211.01,0.03]
[1756898333224,30.7281596,211.02,211.01,0.03]
[1756898333445,27.89974116,211.02,211.01,0.03]
[1756898333621,32.9791438,211.02,211.01,0.03]
[1756898336015,32.3191438,211.02,211.01,0.03]
[1756898337523,27.89974116,211.02,211.01,0.72]
[1756898337729,32.3191438,211.02,211.01,0.72]
[1756898338115,27.89974116,211.02,211.01,0.72]
[1756898338325,32.3191438,211.02,211.01,0.72]
[1756898339315,1.89974116,211.02,211.01,0.72]
[1756898339515,4.41940264,211.02,211.01,0.72]
[1756898340829,4.41940264,211.02,211.01,0.03]
[1756898341035,4.41940264,211.02,211.01,0.72]
[1756898341036,6.3191438,211.02,211.01,0.72]
[1756898342050,6.3191438,211.02,211.01,0.03]
[1756898342219,1.89974116,211.02,211.01,0.72]
[1756898342418,6.3191438,211.02,211.01,0.72]
[1756898342917,6.3191438,211.02,211.01,0.03]
[1756898343235,6.9791438,211.02,211.01,0.03]
[1756898346732,6.3191438,211.02,211.01,0.03]
[1756898346942,6.9791438,211.02,211.01,0.03]
[1756898350447,57.29473781,211.02,211.01,0.03]
[1756898350630,61.281275,211.02,211.01,0.03]
[1756898352446,19.91473781,211.02,211.01,0.03]
[1756898352647,56.63473781,211.02,211.01,0.03]
[1756898353421,57.35473781,211.02,211.01,0.03]
[1756898353649,56.63473781,211.02,211.01,0.03]
[1756898354449,57.35473781,211.02,211.01,0.03]
[1756898356352,19.91473781,211.02,211.01,0.03]
[1756898356544,20.63473781,211.02,211.01,0.03]
[1756898358731,19.91473781,211.02,211.01,0.03]
[1756898358929,20.63473781,211.02,211.01,0.03]
[1756898360123,19.91473781,211.02,211.01,0.03]
[1756898360862,24.621275,211.02,211.01,0.03]
[1756898361635,61.341275,211.02,211.01,0.03]
[1756898362352,61.35044449,211.02,211.01,0.03]
[1756898364546,57.35473781,211.02,211.01,0.03]
[1756898365658,4.41940264,211.01,211.0,0.03]
[1756898365851,8.41559769,211.01,211.0,0.03]
[1756898366159,9.13559769,211.01,211.0,0.03]
[1756898366461,11.03597064,211.01,211.0,0.03]
[1756898367432,10.31597064,211.01,211.0,0.03]
[1756898367640,43.03977559,211.01,211.0,0.03]
[1756898367849,43.03977559,211.01,211.0,0.7]
[1756898368060,43.03977559,211.01,211.0,0.03]
[1756898368257,1.90037295,211.01,211.0,0.7]
[1756898368557,6.31977559,211.01,211.0,0.7]
[1756898368760,32.31977559,211.01,211.0,0.7]
[1756898371664,32.31977559,211.01,211.0,0.03]
[1756898372053,6.31977559,211.01,211.0,0.03]
[1756898372442,32.31977559,211.01,211.0,0.03]
[1756898375869,69.03977559,211.01,211.0,0.03]
[1756898381975,69.03977559,211.01,210.91,79.73]
[1756898381976,33.59559401,210.92,210.91,0.03]
[1756898382175,13.59559401,210.85,210.82,0.03]
[1756898382353,39.59559401,210.82,210.76,0.66]
[1756898382561,76.69559401,210.82,210.76,0.66]
[1756898382755,26.0,210.77,210.76,0.66]
[1756898382959,7.102915,210.77,210.76,0.66]
[1756898383169,11.52231764,210.77,210.76,0.66]
[1756898383765,15.94172028,210.77,210.76,0.66]
[1756898384876,12.39026278,210.77,210.76,0.66]
[1756898385256,26.0,210.75,210.74,0.66]
[1756898385472,33.97086014,210.75,210.74,0.66]
[1756898385872,48.23789141,210.75,210.74,0.66]
[1756898386272,30.41940264,210.75,210.74,0.66]
[1756898388289,26.0,210.75,210.74,0.66]
[1756898388498,30.41940264,210.75,210.74,0.66]
[1756898391268,12.82635281,210.77,210.74,31.07940264]
[1756898391468,46.8564089,210.85,210.76,4.41940264]
[1756898391802,46.8564089,210.85,210.78,4.41940264]
[1756898392093,4.41940264,210.83,210.77,30.41940264]
[1756898392294,42.43700626,210.85,210.77,30.41940264]
[1756898392295,4.41940264,210.84,210.77,30.41940264]
[1756898392883,4.41940264,210.85,210.78,4.41940264]
[1756898393269,0.06,210.81,210.78,4.41940264]
[1756898394074,0.06,210.81,210.79,4.41940264]
[1756898394597,0.06,210.81,210.8,4.41940264]
[1756898394987,0.06,210.81,210.79,4.41940264]
[1756898395572,0.06,210.81,210.8,2.83179455]
[1756898398697,0.06,210.81,210.76,13.59559401]
[1756898399092,0.06,210.81,210.74,4.50940264]
[1756898399296,0.06,210.81,210.76,2.83179455]
[1756898399894,0.06,210.81,210.75,40.17179455]
[1756898400095,0.06,210.81,210.76,2.83179455]
[1756898400299,0.06,210.81,210.75,2.83179455]
[1756898400510,0.06,210.81,210.76,79.7]
[1756898400704,2.89179455,210.81,210.76,79.7]
[1756898401376,3.56179455,210.81,210.76,79.7]
[1756898401580,2.83179455,210.79,210.76,79.7]
[1756898401809,2.83179455,210.79,210.74,117.05]
[1756898401987,2.83179455,210.78,210.74,0.03]
[1756898402193,3.50179455,210.78,210.74,0.03]
[1756898402414,2.83179455,210.78,210.74,0.03]
[1756898403208,0.67,210.79,210.74,0.03]
[1756898403410,0.06,210.81,210.75,2.83179455]
[1756898403995,0.73,210.81,210.75,2.83179455]
[1756898404605,0.73,210.81,210.75,40.15179455]
[1756898405079,0.06,210.81,210.77,2.83179455]
[1756898405284,0.06,210.81,210.8,2.83179455]
[1756898405488,0.06,210.81,210.78,2.83179455]
[1756898405895,0.06,210.81,210.75,37.32]
[1756898405896,0.06,210.81,210.77,2.83179455]
[1756898406203,0.06,210.81,210.78,2.83179455]
[1756898406782,0.73,210.81,210.75,79.7]
[1756898406988,0.73,210.81,210.77,2.83179455]
[1756898407185,0.06,210.81,210.77,2.83179455]
[1756898409393,0.06,210.81,210.76,37.36]
[1756898409591,0.06,210.81,210.77,2.83179455]
[1756898412399,0.06,210.81,210.77,79.7]
[1756898415302,0.06,210.81,210.77,82.53179455]
[1756898419496,0.72,210.81,210.77,82.53179455]
[1756898419992,0.06,210.81,210.78,2.83179455]
[1756898420311,0.06,210.81,210.79,37.24]
[1756898422033,0.06,210.81,210.79,40.07179455]
[1756898422315,0.06,210.81,210.79,37.24]
[1756898422722,0.72,210.81,210.79,37.24]
[1756898423824,0.66,210.8,210.79,37.24]
[1756898424618,0.06,210.81,210.79,37.24]
[1756898424925,0.06,210.81,210.8,2.83179455]
[1756898426210,0.06,210.81,210.8,82.53179455]
[1756898429401,0.06,210.81,210.8,16.99664852]
[1756898429811,0.06,210.81,210.8,98.88170582]
[1756898430026,0.06,210.81,210.8,98.31244586]
[1756898431396,0.06,210.84,210.8,98.31244586]
[1756898431397,0.06,210.84,210.81,13.87991715]
[1756898431613,0.06,210.84,210.83,27.75456676]
[1756898432314,0.06,210.84,210.83,28.60806885]
[1756898432897,0.06,210.86,210.85,39.59559401]
[1756898433100,0.66,210.98,210.86,13.87991715]
[1756898433300,0.06,211.03,210.86,13.87991715]
[1756898433301,0.66,210.97,210.95,2.83179455]
[1756898433518,2.83179455,211.02,210.96,40.31179455]
[1756898433713,28.89179455,211.03,210.97,37.48]
[1756898434008,28.89179455,211.03,210.97,40.31179455]
[1756898434210,0.66,211.02,210.97,40.31179455]
[1756898434410,0.66,211.01,210.97,40.31179455]
[1756898434616,0.66,211.0,210.97,40.31179455]
[1756898434901,0.66,210.99,210.98,2.83179455]
[1756898435616,0.66,210.99,210.97,40.31179455]
[1756898435813,0.66,210.98,210.97,40.31179455]
[1756898437227,0.66,210.98,210.97,37.48]
[1756898439216,0.66,210.98,210.97,37.4]
[1756898441528,0.66,210.98,210.97,37.36]
[1756898444331,0.66,210.98,210.97,37.34]
[1756898446423,0.72,210.98,210.97,37.34]
[1756898446933,3.55179455,210.98,210.88,79.7]
[1756898447126,2.83179455,210.93,210.84,79.7]
[1756898447320,0.06,210.98,210.84,79.7]
[1756898447321,3.49179455,210.92,210.9,14.25008906]
[1756898447636,3.49179455,210.91,210.89,37.34]
[1756898447822,3.49179455,210.9,210.89,37.34]
[1756898449540,3.49179455,210.9,210.84,79.7]
[1756898449738,3.49179455,210.89,210.85,37.34]
[1756898450039,0.66,210.88,210.85,37.34]
[1756898450237,0.66,210.88,210.83,2.83179455]
[1756898450442,0.66,210.88,210.84,37.32]
[1756898451032,2.83179455,210.89,210.84,37.32]
[1756898451233,0.66,210.88,210.84,37.32]
[1756898451430,2.83179455,210.89,210.84,37.32]
[1756898451631,0.66,210.87,210.84,37.32]
[1756898452237,3.49179455,210.89,210.84,37.32]
[1756898452940,0.66,210.88,210.84,37.32]
[1756898453740,0.66,210.88,210.84,117.02]
[1756898455446,4.42318249,210.89,210.84,117.02]
[1756898455653,5.08318249,210.87,210.85,37.26]
[1756898455946,0.66,210.86,210.85,37.26]
[1756898456562,26.0,210.86,210.85,37.26]
[1756898457233,0.66,210.86,210.85,37.26]
[1756898459558,0.66,210.88,210.85,37.26]
[1756898459729,26.0,210.86,210.85,37.26]
[1756898460242,0.66,210.92,210.85,41.68318249]
[1756898460432,26.0,210.9,210.87,4.42318249]
[1756898460635,26.66,210.9,210.88,37.24]
[1756898460956,26.0,210.9,210.88,37.24]
[1756898461655,0.66,210.89,210.88,37.24]
[1756898463438,0.66,210.89,210.86,37.24]
[1756898463636,0.66,210.88,210.86,37.24]
[1756898463857,0.66,210.87,210.86,37.24]
[1756898464254,0.66,210.87,210.86,37.27]
[1756898464647,5.08318249,210.87,210.86,0.03]
[1756898465145,5.08318249,210.87,210.83,0.03]
[1756898465330,4.42318249,210.84,210.83,0.03]
[1756898465758,5.08318249,210.84,210.83,0.03]
[1756898467943,8.97521637,210.84,210.83,0.03]
[1756898468259,5.08318249,210.84,210.83,0.03]
[1756898470660,31.08318249,210.84,210.83,0.03]
[1756898470867,32.98482028,210.84,210.83,0.03]
[1756898471046,6.98482028,210.84,210.83,0.03]
[1756898476767,2.56163779,210.84,210.83,0.03]
[1756898477069,26.0,210.81,210.8,0.03]
[1756898477256,30.42318249,210.81,210.8,0.03]
[1756898477444,31.13318249,210.81,210.8,0.03]
[1756898478246,33.03518197,210.81,210.8,0.03]
[1756898482473,16.20759349,210.81,210.8,0.03]
[1756898482651,20.63077598,210.81,210.8,0.03]
[1756898486074,57.73077598,210.81,210.8,0.03]
[1756898486951,16.20759349,210.81,210.8,0.03]
[1756898487174,57.75077598,210.81,210.8,0.03]
[1756898488980,16.20759349,210.81,210.8,0.03]
[1756898489177,57.73077598,210.81,210.8,0.03]
[1756898493078,57.71077598,210.81,210.8,0.03]
[1756898494166,53.28759349,210.81,210.8,0.03]
[1756898494486,57.71077598,210.81,210.8,0.03]
[1756898496191,57.69077598,210.81,210.8,0.03]
[1756898499269,39.59559401,210.78,210.77,0.03]
[1756898499472,81.2587765,210.78,210.77,0.03]
[1756898499770,44.0187765,210.78,210.77,0.03]
[1756898499989,83.14122828,210.78,210.77,0.03]
[1756898500793,83.85122828,210.78,210.77,0.03]
[1756898500994,79.42804579,210.78,210.77,0.03]
[1756898501195,83.14122828,210.78,210.77,0.03]
[1756898501389,1.90245178,210.78,210.77,0.12]
[1756898501591,4.42318249,210.8,210.77,0.12]
[1756898501792,4.04208138,210.83,210.78,0.09]
[1756898501793,1.90190904,210.81,210.78,0.09]
[1756898502093,30.42318249,210.79,210.78,0.09]
[1756898502289,30.42318249,210.79,210.77,0.03]
[1756898502290,26.0,210.78,210.77,0.03]
[1756898502499,26.0,210.78,210.77,0.12]
[1756898503499,30.42318249,210.78,210.77,0.12]
[1756898504387,26.0,210.78,210.77,0.12]
[1756898504795,26.0,210.78,210.77,0.03]
[1756898506296,4.42318249,210.79,210.77,0.03]
[1756898508484,30.42318249,210.78,210.77,0.03]
[1756898508806,4.42318249,210.78,210.77,0.03]
[1756898512380,26.0,210.79,210.77,0.03]
[1756898512586,4.42318249,210.78,210.77,0.03]
[1756898513621,30.42318249,210.79,210.77,0.03]
[1756898513806,5.07318249,210.79,210.77,0.03]
[1756898514105,31.07318249,210.79,210.77,0.03]
[1756898517613,29.48365801,210.79,210.77,0.03]
[1756898518808,2.83365801,210.78,210.77,0.03]
[1756898520615,3.48365801,210.78,210.77,0.03]
[1756898521210,0.65,210.78,210.77,0.03]
[1756898523208,3.48365801,210.78,210.77,0.03]
[1756898523393,5.38574794,210.78,210.77,0.03]
[1756898524704,2.55208993,210.78,210.77,0.03]
[1756898528823,5.38574794,210.78,210.77,0.03]
[1756898530016,2.55208993,210.78,210.77,0.03]
[1756898531330,1.90208993,210.78,210.77,2.95365801]
[1756898531823,0.06,210.8,210.78,13.59559401]
[1756898532029,0.06,210.83,210.8,13.59559401]
[1756898532230,0.06,210.83,210.82,2.83365801]
[1756898533034,0.06,210.83,210.82,6.27848739]
[1756898534108,0.06,210.83,210.82,10.92924613]
[1756898535227,0.06,210.83,210.82,6.27848739]
[1756898536242,0.77,210.83,210.82,3.44482938]
[1756898536545,0.77,210.83,210.8,3.52545591]
[1756898536711,3.54365801,210.82,210.77,0.03]
[1756898537130,0.71,210.81,210.78,3.52647571]
[1756898537415,0.71,210.8,210.77,0.03]
[1756898537822,2.83365801,210.82,210.77,0.03]
[1756898538024,3.54365801,210.82,210.77,0.03]
[1756898538330,0.71,210.81,210.78,3.52639697]
[1756898538512,0.71,210.81,210.77,2.86365801]
[1756898538713,0.71,210.81,210.78,3.52632982]
[1756898539013,0.71,210.8,210.77,0.03]
[1756898539836,0.71,210.79,210.77,0.03]
[1756898540038,0.71,210.8,210.77,3.5574079]
[1756898540948,0.71,210.8,210.77,0.03]
[1756898541260,3.60365801,210.83,210.77,6.39087532]
[1756898541550,0.77,210.83,210.77,6.39087532]
[1756898542448,26.71,210.82,210.77,6.39087532]
[1756898542649,0.71,210.81,210.77,6.39087532]
[1756898542856,0.71,210.81,210.77,86.09087532]
[1756898543152,0.71,210.81,210.77,82.56365801]
[1756898543524,0.71,210.8,210.77,79.73]
[1756898543747,0.71,210.79,210.77,79.73]
[1756898543924,0.71,210.78,210.77,79.73]
[1756898544125,3.54365801,210.8,210.77,3.55870528]
[1756898544325,0.71,210.79,210.77,3.55870528]
[1756898545328,0.71,210.79,210.77,0.03]
[1756898547224,0.71,210.79,210.78,3.53129563]
[1756898547553,26.0,210.81,210.78,3.53129563]
[1756898547726,0.77,210.83,210.78,2.83365801]
[1756898547923,0.71,210.82,210.79,3.53082914]
[1756898548240,0.71,210.81,210.79,3.53074968]
[1756898548737,0.71,210.81,210.78,3.53074968]
[1756898548939,0.71,210.81,210.77,2.86365801]
[1756898549241,0.06,210.83,210.78,3.53075709]
[1756898549438,0.77,210.83,210.77,2.86365801]
[1756898549638,0.77,210.83,210.78,3.53014014]
[1756898549841,0.71,210.82,210.77,2.86365801]
[1756898550043,0.06,210.83,210.78,6.36379733]
[1756898550234,0.71,210.81,210.78,2.83365801]
[1756898552044,0.77,210.83,210.78,2.83365801]
[1756898552241,0.77,210.83,210.79,2.83365801]
[1756898552242,0.06,210.83,210.79,2.83365801]
[1756898552427,0.06,210.83,210.82,2.83365801]
[1756898553158,0.06,210.83,210.81,2.83365801]
[1756898553671,0.71,210.82,210.8,3.53049923]
[1756898553946,0.71,210.82,210.79,6.36415724]
[1756898554150,0.06,210.83,210.79,2.83365801]
[1756898554342,0.06,210.83,210.8,6.36411834]
[1756898554645,0.77,210.83,210.8,2.83365801]
[1756898554845,0.06,210.83,210.82,2.83365801]
[1756898560053,0.06,210.83,210.79,3.52832803]
[1756898560246,0.06,210.83,210.82,2.83365801]
[1756898560646,0.77,210.83,210.81,2.83365801]
[1756898560845,0.71,210.82,210.8,79.7]
[1756898561049,0.71,210.81,210.8,79.7]
[1756898565765,26.06,210.83,210.8,79.7]
[1756898565940,0.72,210.82,210.8,79.7]
[1756898566259,0.72,210.81,210.8,79.7]
[1756898566461,0.72,210.81,210.79,2.83365801]
[1756898568953,0.72,210.81,210.78,120.34365801]
[1756898569267,0.72,210.8,210.78,120.34365801]
[1756898569760,0.06,210.83,210.78,79.73]
[1756898569761,0.72,210.79,210.78,79.73]
[1756898570565,0.72,210.81,210.78,79.73]
[1756898570768,0.72,210.8,210.78,79.73]
[1756898570952,0.72,210.79,210.78,117.41]
[1756898572375,0.72,210.79,210.78,37.71]
[1756898578355,0.72,210.79,210.78,0.03]
[1756898580374,26.72,210.8,210.78,0.03]
[1756898580577,26.0,210.8,210.78,0.03]
[1756898580775,0.72,210.79,210.78,0.03]
[1756898580957,26.72,210.8,210.78,0.03]
[1756898581276,0.06,210.81,210.78,0.03]
[1756898581468,26.78,210.81,210.78,4.4566082]
[1756898581778,26.78,210.81,210.78,42.0166082]
[1756898581971,0.78,210.81,210.78,42.0166082]
[1756898582873,0.06,210.81,210.78,42.0166082]
[1756898583056,0.72,210.8,210.78,42.0166082]
[1756898583479,0.06,210.81,210.78,42.0166082]
[1756898583669,0.78,210.81,210.78,42.0166082]
[1756898585184,26.78,210.81,210.78,42.0166082]
[1756898586085,0.72,210.8,210.78,42.0166082]
[1756898586385,26.78,210.81,210.78,42.0166082]
[1756898587284,4.4266082,210.79,210.78,0.03]
[1756898587779,5.1466082,210.79,210.78,0.03]
[1756898590190,8.70115412,210.79,210.78,0.03]
[1756898591191,5.1466082,210.79,210.78,0.03]
[1756898591579,0.72,210.79,210.78,0.03]
[1756898596398,0.72,210.79,210.78,0.03]
[1756898597894,5.1466082,210.79,210.78,0.03]
[1756898600095,0.72,210.79,210.78,0.03]
[1756898607719,5.1466082,210.79,210.78,0.03]
[1756898612517,26.06,210.8,210.78,0.03]
[1756898613202,0.72,210.79,210.78,0.03]
[1756898613726,5.1466082,210.79,210.78,0.03]
[1756898617429,0.06,210.8,210.78,4.4566082]
[1756898618427,0.06,210.8,210.79,4.4266082]
[1756898622403,0.06,210.8,210.79,84.1266082]
[1756898627115,0.06,210.8,210.79,86.02779407]
[1756898631343,0.74,210.8,210.79,79.7]
[1756898631652,0.74,210.8,210.79,84.1266082]
[1756898631815,0.74,210.8,210.79,4.4266082]
[1756898637135,0.74,210.8,210.78,79.73]
[1756898637461,0.68,210.79,210.78,79.73]
[1756898637663,0.68,210.79,210.78,0.03]
[1756898641137,0.68,210.79,210.78,2.86312728]
[1756898643843,0.06,210.8,210.78,2.86312728]
[1756898644060,0.06,210.8,210.79,2.83312728]
[1756898644864,0.74,210.8,210.79,2.83312728]
[1756898646271,0.74,210.8,210.78,0.03]
[1756898647068,0.74,210.8,210.77,0.03]
[1756898647069,29.57312728,210.8,210.77,0.03]
[1756898647253,26.0,210.78,210.77,0.03]
[1756898647648,26.68,210.78,210.77,0.03]
[1756898651062,29.54312728,210.78,210.77,2.86312728]
[1756898651270,29.54312728,210.78,210.77,0.03]
[1756898655359,40.62312728,210.78,210.77,0.03]
[1756898657470,3.54312728,210.78,210.77,0.03]
[1756898657883,40.62312728,210.78,210.77,0.03]
[1756898658580,2.86312728,210.78,210.77,0.03]
[1756898658794,0.06,210.8,210.77,2.89312728]
[1756898658955,0.06,210.8,210.79,2.83312728]
[1756898659650,0.06,210.8,210.79,4.73458427]
[1756898659876,0.06,210.8,210.79,2.83312728]
[1756898660075,0.06,210.8,210.79,4.73458427]
[1756898660468,0.06,210.8,210.79,1.93145699]
[1756898660977,0.06,210.8,210.79,4.76458427]
[1756898661378,0.06,210.8,210.79,4.73458427]
[1756898661875,0.06,210.8,210.79,4.76458427]
[1756898662177,0.06,210.8,210.79,18.36017828]
[1756898663663,0.06,210.8,210.79,98.06017828]
[1756898664774,0.06,210.8,210.79,98.03017828]
[1756898665272,0.06,210.8,210.79,84.43458427]
[1756898665667,0.06,210.8,210.79,82.53312728]
[1756898667374,0.06,210.8,210.79,2.83312728]
[1756898670181,0.06,210.8,210.79,4.73449389]
[1756898670381,0.06,210.8,210.79,2.83312728]
[1756898671181,0.06,210.8,210.79,4.73449389]
[1756898675184,0.06,210.8,210.79,2.83312728]
[1756898676586,0.06,210.8,210.79,2.86312728]
[1756898677390,0.06,210.8,210.79,55.98919411]
[1756898677563,0.06,210.83,210.82,39.59559401]
[1756898677769,0.06,210.83,210.82,42.42872129]
[1756898677969,0.06,210.83,210.82,2.83312728]
[1756898679981,0.06,210.83,210.82,4.73413244]
[1756898682489,0.76,210.83,210.82,1.90100516]
[1756898682795,0.76,210.83,210.78,2.83312728]
[1756898683097,0.7,210.82,210.78,2.83312728]
[1756898683404,0.7,210.81,210.78,2.83312728]
[1756898683582,0.7,210.8,210.78,2.83312728]
[1756898683792,0.7,210.8,210.78,4.73449389]
[1756898684108,0.7,210.8,210.78,2.83312728]
[1756898689496,0.7,210.81,210.78,2.83312728]
[1756898689690,0.7,210.8,210.78,2.83312728]
[1756898690408,0.7,210.8,210.78,2.86312728]
[1756898690896,0.7,210.82,210.79,2.83312728]
[1756898691105,0.7,210.81,210.79,2.83312728]
[1756898691298,0.76,210.81,210.79,2.83312728]
[1756898692005,0.06,210.81,210.79,2.83312728]
[1756898692306,0.7,210.8,210.79,2.83312728]
[1756898692910,0.06,210.81,210.79,2.83312728]
[1756898693207,0.76,210.81,210.79,2.83312728]
[1756898693797,0.06,210.81,210.79,2.83312728]
[1756898694005,0.7,210.8,210.79,2.83312728]
[1756898694406,0.7,210.8,210.78,2.86312728]
[1756898696106,0.06,210.81,210.79,2.83312728]
[1756898696283,0.76,210.81,210.79,2.83312728]
[1756898696484,0.76,210.81,210.78,0.03]
[1756898696684,0.76,210.81,210.8,2.83312728]
[1756898698000,0.76,210.81,210.79,2.83312728]
[1756898698502,0.06,210.81,210.8,2.83312728]
[1756898700606,0.06,210.81,210.8,39.90312728]
[1756898701208,0.06,210.81,210.8,39.87312728]
[1756898701522,0.06,210.81,210.8,41.46316603]
[1756898704790,0.06,210.81,210.8,37.04]
[1756898704992,0.06,210.81,210.8,41.46316603]
[1756898705398,0.06,210.81,210.8,55.08876004]
[1756898705695,0.06,210.81,210.8,55.05876004]
[1756898705910,0.06,210.81,210.8,55.08876004]
[1756898706100,0.06,210.81,210.8,55.05876004]
[1756898706417,0.06,210.81,210.8,55.08876004]
[1756898707399,0.06,210.83,210.82,39.59559401]
[1756898707605,0.06,210.85,210.84,0.28432314]
[1756898707808,0.06,210.85,210.84,60.31540117]
[1756898708097,0.06,210.85,210.84,62.24568384]
[1756898712719,0.06,210.88,210.87,39.87991715]
[1756898712905,0.06,210.88,210.87,81.89215417]
[1756898713111,0.06,210.88,210.87,81.92215417]
[1756898713843,0.06,210.88,210.87,83.79216604]
[1756898714819,0.06,210.88,210.87,82.93877191]
[1756898715520,0.06,210.88,210.87,44.01876004]
[1756898715717,0.77,210.88,210.86,1.9001924]
[1756898716037,0.77,210.88,210.83,0.28432314]
[1756898716038,0.06,210.88,210.87,32.74316603]
[1756898716636,0.77,210.88,210.87,32.74316603]
[1756898720834,5.19316603,210.88,210.74,0.06]
[1756898721041,5.19316603,210.88,210.82,4.42316603]
[1756898721215,5.13316603,210.87,210.81,37.0]
[1756898721531,5.13316603,210.86,210.81,37.0]
[1756898721713,0.71,210.85,210.81,37.0]
[1756898721913,0.71,210.84,210.82,4.42316603]
[1756898722129,0.71,210.83,210.82,4.42316603]
[1756898722336,0.71,210.83,210.81,41.42316603]
[1756898722540,0.71,210.82,210.81,41.42316603]
[1756898722836,0.71,210.82,210.81,37.0]
[1756898724834,0.71,210.82,210.8,0.03]
[1756898725932,0.71,210.82,210.8,4.45316603]
[1756898726132,4.42316603,210.86,210.81,0.03]
[1756898726634,0.71,210.85,210.81,0.03]
[1756898726939,5.13316603,210.85,210.81,0.03]
[1756898727849,4.42316603,210.84,210.81,0.03]
[1756898728344,0.71,210.83,210.81,0.03]
[1756898728941,4.42316603,210.82,210.81,0.03]
[1756898729343,5.13316603,210.82,210.81,0.03]
[1756898729931,0.71,210.82,210.81,0.03]
[1756898730631,5.13316603,210.82,210.81,0.03]
[1756898734049,0.71,210.82,210.81,0.03]
[1756898734247,5.13316603,210.82,210.81,0.03]
[1756898737856,0.71,210.82,210.81,0.03]
[1756898738034,5.13316603,210.82,210.81,0.03]
[1756898741751,26.71,210.82,210.81,0.03]
[1756898741958,31.13316603,210.82,210.81,0.03]
[1756898742848,44.72876004,210.82,210.81,0.03]
[1756898743758,40.30559401,210.82,210.81,0.03]
[1756898744061,81.70876004,210.82,210.81,0.03]
[1756898744653,44.72876004,210.82,210.81,0.03]
[1756898745041,81.70876004,210.82,210.81,0.03]
[1756898747063,83.61075952,210.82,210.81,0.03]
[1756898747837,46.63075952,210.82,210.81,0.03]
[1756898748161,83.61075952,210.82,210.81,0.03]
[1756898755647,13.59559401,210.81,210.8,0.03]
[1756898755974,18.01876004,210.81,210.8,0.03]
[1756898756155,18.71876004,210.81,210.8,0.03]
[1756898756372,44.01876004,210.79,210.78,0.03]
[1756898756567,80.99876004,210.79,210.78,0.03]
[1756898756873,81.69876004,210.79,210.78,0.03]
[1756898757173,83.60112135,210.79,210.78,0.03]
[1756898761389,1.90236131,210.79,210.78,0.03]
[1756898761677,3.97740515,210.85,210.78,0.06]
[1756898761678,13.59559401,210.84,210.78,0.06]
[1756898761860,4.73542121,210.82,210.78,0.06]
[1756898762171,2.83342173,210.81,210.78,0.06]
[1756898762372,2.83342173,210.83,210.79,0.03]